bitfinex/quotes_SOLUSD_20240605
["timestamp","ask_amount","ask_price","bid_price","bid_amount"]
[1717585306917,0.4,172.54,172.47,6.5986]
[1717585306918,4.6889,172.54,172.47,6.5986]
[1717585307302,2.145,172.5,172.47,6.5986]
[1717585309522,10.7235,172.52,172.43,2.1456]
[1717585309722,2.145,172.49,172.45,2.1454]
[1717585310026,8.9184,172.53,172.45,6.3727]
[1717585310027,2.1452,172.48,172.45,6.3727]
[1717585310726,2.145,172.49,172.45,6.3727]
[1717585310932,2.145,172.49,172.45,8.5182]
[1717585311131,2.1449,172.5,172.46,6.5324]
[1717585311350,2.1448,172.51,172.48,6.5324]
[1717585311510,2.1445,172.53,172.48,2.145]
[1717585311708,2.1445,172.53,172.47,22.502]
[1717585311910,2.1445,172.53,172.49,6.5324]
[1717585312115,2.1445,172.53,172.49,8.6774]
[1717585313235,2.5444,172.54,172.49,8.6774]
[1717585313422,2.5444,172.54,172.5,22.9843]
[1717585313627,2.5444,172.54,172.51,6.3714]
[1717585314121,0.4,172.54,172.51,6.3714]
[1717585314321,0.4,172.54,172.5,2.1449]
[1717585314322,2.5445,172.54,172.49,8.7519]
[1717585314817,0.4,172.54,172.46,16.6444]
[1717585315024,2.145,172.5,172.45,6.08]
[1717585315329,2.1448,172.51,172.46,2.1453]
[1717585315529,2.1448,172.51,172.47,2.1452]
[1717585315832,2.1448,172.51,172.47,8.2252]
[1717585316132,2.1447,172.52,172.48,6.5493]
[1717585316433,2.1446,172.53,172.49,6.5493]
[1717585317225,2.1446,172.52,172.49,6.5493]
[1717585318239,2.1447,172.52,172.49,6.5493]
[1717585318441,2.1448,172.51,172.46,2.1453]
[1717585318621,2.1448,172.51,172.47,2.1452]
[1717585319138,2.1448,172.51,172.46,8.804]
[1717585320139,20.4,172.54,172.46,6.6587]
[1717585320323,0.4,172.54,172.46,6.6587]
[1717585322613,0.4,172.54,172.47,16.3437]
[1717585322840,0.4,172.54,172.47,16.5137]
[1717585323717,0.4,172.54,172.49,7.24]
[1717585323922,0.4,172.54,172.5,7.24]
[1717585324137,0.4,172.54,172.52,22.684]
[1717585324329,0.4,172.54,172.53,22.854]
[1717585324919,0.4,172.54,172.53,22.684]
[1717585325321,0.4,172.54,172.48,415.06]
[1717585325322,0.4,172.54,172.49,6.3466]
[1717585325521,0.4,172.54,172.5,6.3466]
[1717585326831,0.4,172.54,172.48,386.4775]
[1717585327029,0.4,172.54,172.5,7.24]
[1717585327250,0.4,172.54,172.53,29.5101]
[1717585327423,0.4,172.54,172.53,29.8501]
[1717585327832,0.4,172.54,172.53,22.6101]
[1717585328751,0.4,172.54,172.53,57.3701]
[1717585331052,0.4,172.54,172.53,22.6101]
[1717585333259,0.4,172.54,172.53,22.4401]
[1717585333629,0.4,172.54,172.53,22.6101]
[1717585335452,0.4,172.54,172.53,57.3701]
[1717585335764,0.4,172.64,172.53,457.6701]
[1717585336053,0.4,172.64,172.55,34.76]
[1717585336234,0.4,172.64,172.56,2.16845546]
[1717585336424,0.4,172.64,172.57,1.8283495]
[1717585336850,0.4,172.64,172.58,0.34]
[1717585338658,0.4,172.64,172.57,1.8283495]
[1717585341061,0.4,172.64,172.53,402.5701]
[1717585342555,0.4,172.64,172.53,6.5174]
[1717585342752,0.17,172.63,172.49,6.0431]
[1717585343068,20.4,172.64,172.5,1.82909144]
[1717585343735,20.4,172.64,172.51,0.17]
[1717585343936,20.4,172.64,172.51,0.34]
[1717585344750,0.34,172.63,172.51,0.34]
[1717585344952,0.34,172.63,172.51,0.17]
[1717585348538,20.4,172.64,172.51,0.17]
[1717585348740,20.4,172.64,172.51,0.34]
[1717585350260,0.4,172.64,172.52,1.8288794]
[1717585350465,0.4,172.64,172.53,0.17]
[1717585350638,20.4,172.64,172.53,0.34]
[1717585350838,0.4,172.64,172.53,0.34]
[1717585351040,0.4,172.64,172.54,1.8286674]
[1717585351261,0.4,172.64,172.55,0.34]
[1717585355947,0.4,172.64,172.55,6.133]
[1717585357769,0.4,172.64,172.55,421.193]
[1717585358163,0.4,172.64,172.56,1.82845546]
[1717585358357,0.4,172.64,172.57,0.34]
[1717585358865,0.4,172.64,172.58,1.82824356]
[1717585359068,0.4,172.64,172.59,0.34]
[1717585360870,0.4,172.64,172.59,6.4435]
[1717585361259,0.4,172.64,172.6,1.82803171]
[1717585361580,0.4,172.64,172.61,0.34]
[1717585362482,0.4,172.64,172.62,5.793]
[1717585362661,0.4,172.64,172.63,0.34]
[1717585368358,0.4,172.64,172.63,386.433]
[1717585369872,0.4,172.64,172.63,387.89]
[1717585374588,0.4,172.64,172.63,428.443]
[1717585375686,0.4,172.64,172.63,415.4]
[1717585375888,0.4,172.64,172.63,442.65]
[1717585380787,0.4,172.64,172.63,400.64]
[1717585381108,0.4,172.64,172.63,380.3]
[1717585382215,6.5169,172.64,172.63,380.3]
[1717585383695,22.1571,172.64,172.63,380.3]
[1717585384104,22.1571,172.64,172.53,34.76]
[1717585384105,22.1571,172.64,172.55,380.3]
[1717585384603,22.1571,172.64,172.53,415.06]
[1717585384813,22.1571,172.64,172.54,7.25]
[1717585386008,22.1571,172.64,172.55,0.17]
[1717585386204,22.1571,172.64,172.53,7.25]
[1717585386205,22.1571,172.64,172.54,0.17]
[1717585386413,22.1571,172.64,172.54,1.9986674]
[1717585387114,22.1571,172.64,172.55,0.17]
[1717585390807,22.1571,172.64,172.54,1.9986674]
[1717585393244,22.1571,172.64,172.55,7.25]
[1717585393536,22.1571,172.64,172.56,0.17]
[1717585393830,22.1571,172.64,172.56,7.42]
[1717585394701,6.5169,172.64,172.58,7.25]
[1717585394908,0.4,172.64,172.59,7.42]
[1717585395108,0.4,172.64,172.58,7.25]
[1717585395342,0.4,172.64,172.59,0.17]
[1717585395635,0.4,172.64,172.59,1.3270749]
[1717585399532,0.4,172.64,172.59,0.17]
[1717585399710,0.4,172.64,172.6,1.82803171]
[1717585401145,6.108,172.63,172.6,1.82803171]
[1717585402412,6.5394,172.62,172.6,1.82803171]
[1717585402715,6.5394,172.62,172.58,380.3]
[1717585402928,6.378,172.61,172.58,380.3]
[1717585403128,15.3985,172.62,172.58,380.3]
[1717585403435,15.3985,172.62,172.53,34.76]
[1717585403436,6.378,172.6,172.53,34.76]
[1717585403643,6.378,172.6,172.53,36.58877339]
[1717585404237,6.378,172.6,172.54,0.17]
[1717585404428,6.378,172.6,172.53,36.58877339]
[1717585404935,6.378,172.6,172.53,1.82877339]
[1717585405138,6.378,172.6,172.53,21.82877339]
[1717585405511,6.378,172.6,172.53,1.82877339]
[1717585413715,6.378,172.6,172.54,0.17]
[1717585413915,6.378,172.6,172.53,1.82877339]
[1717585417941,5.878,172.6,172.54,0.17]
[1717585418149,5.878,172.6,172.54,0.34]
[1717585418436,0.4,172.64,172.54,7.59]
[1717585419515,0.4,172.64,172.54,0.34]
[1717585419850,0.4,172.64,172.54,8.33813476]
[1717585421141,6.9393,172.64,172.54,0.34]
[1717585422238,6.9393,172.64,172.54,7.59]
[1717585424240,6.9393,172.64,172.54,0.34]
[1717585424945,6.9393,172.64,172.54,7.59]
[1717585425330,0.4,172.64,172.56,42.01]
[1717585425520,0.4,172.64,172.57,27.59]
[1717585425721,0.4,172.64,172.58,1.82824356]
[1717585425925,0.4,172.64,172.59,0.34]
[1717585427342,0.4,172.64,172.59,7.59]
[1717585432761,0.4,172.64,172.6,1.82803171]
[1717585433054,0.4,172.64,172.61,0.34]
[1717585441661,0.4,172.64,172.6,1.82803171]
[1717585443364,6.3973,172.63,172.6,1.82803171]
[1717585443653,6.5217,172.62,172.6,1.82803171]
[1717585443859,6.5217,172.62,172.59,380.3]
[1717585444444,6.5217,172.62,172.53,415.06]
[1717585444645,6.5217,172.62,172.53,387.55]
[1717585444837,6.5217,172.62,172.54,1.9986674]
[1717585445960,6.5217,172.62,172.55,0.17]
[1717585446349,6.5217,172.62,172.54,1.8286674]
[1717585448662,6.5217,172.62,172.55,0.17]
[1717585448859,0.4,172.64,172.55,7.59]
[1717585450857,0.4,172.64,172.55,42.35]
[1717585451049,0.4,172.64,172.56,42.01]
[1717585451368,0.4,172.64,172.57,0.34]
[1717585452362,0.4,172.64,172.56,0.34]
[1717585455368,0.4,172.64,172.56,0.34]
[1717585468774,0.4,172.64,172.55,0.17]
[1717585468973,0.4,172.64,172.54,382.1286674]
[1717585473413,6.3383,172.63,172.54,382.1286674]
[1717585473696,6.3383,172.63,172.54,1.8286674]
[1717585479083,20.0,172.62,172.54,1.8286674]
[1717585488710,6.4341,172.6,172.54,1.8286674]
[1717585489018,20.0,172.59,172.49,380.3]
[1717585491524,6.0356,172.54,172.49,380.3]
[1717585491727,6.0356,172.5,172.49,380.3]
[1717585495005,20.0,172.53,172.49,380.3]
[1717585495006,6.0275,172.52,172.49,380.3]
[1717585500025,6.6457,172.56,172.49,380.3]
[1717585500209,65.34,172.55,172.49,380.3]
[1717585505541,20.34,172.55,172.49,380.3]
[1717585505742,20.0,172.55,172.49,380.3]
[1717585508826,20.0,172.55,172.43,15.4355]
[1717585509023,20.0,172.55,172.44,0.34]
[1717585509233,20.0,172.55,172.44,2.16972787]
[1717585511346,6.80037147,172.59,172.45,42.86582177]
[1717585511542,20.0,172.58,172.46,0.34]
[1717585512649,20.0,172.58,172.45,8.10582177]
[1717585517129,45.34,172.57,172.45,1.82962177]
[1717585517330,20.0,172.56,172.45,1.82962177]
[1717585518428,6.2665,172.55,172.45,1.82962177]
[1717585518630,20.0,172.54,172.45,1.82962177]
[1717585520223,20.0,172.54,172.43,380.3]
[1717585520661,20.0,172.54,172.41,6.8057]
[1717585520957,20.0,172.54,172.42,0.34]
[1717585525276,20.0,172.54,172.42,0.17]
[1717585531182,20.0,172.54,172.43,1.74947253]
[1717585532156,20.0,172.54,172.42,0.17]
[1717585532373,20.0,172.54,172.43,1.74947944]
[1717585534762,20.0,172.54,172.42,0.17]
[1717585534964,20.0,172.54,172.42,0.34]
[1717585537884,6.2665,172.55,172.43,1.82983398]
[1717585538095,6.2665,172.55,172.44,0.34]
[1717585538780,6.2665,172.55,172.43,382.12983398]
[1717585539283,20.0,172.54,172.43,382.12983398]
[1717585544082,20.0,172.54,172.43,1.82983398]
[1717585554571,0.34,172.53,172.43,1.82983398]
[1717585559894,15.3804,172.52,172.43,1.82983398]
[1717585560100,20.0,172.51,172.43,1.82983398]
[1717585560776,20.0,172.51,172.41,0.4]
[1717585561102,6.5314,172.5,172.41,0.4]
[1717585561696,20.0,172.49,172.41,0.4]
[1717585566715,6.5314,172.5,172.42,0.17]
[1717585567018,6.5314,172.5,172.42,0.34]
[1717585567740,6.5314,172.5,172.42,2.16994011]
[1717585570698,15.3804,172.52,172.43,1.82983398]
[1717585570897,15.3804,172.52,172.44,0.34]
[1717585572527,15.3804,172.52,172.43,1.82983398]
[1717585575609,6.0662,172.51,172.43,1.82983398]
[1717585575807,20.0,172.5,172.43,1.82983398]
[1717585576004,20.0,172.5,172.41,0.4]
[1717585589815,6.0662,172.51,172.42,0.17]
[1717585590017,6.0662,172.51,172.42,0.34]
[1717585590824,6.0662,172.51,172.43,1.82983398]
[1717585591144,6.0662,172.51,172.44,0.17]
[1717585592850,6.0662,172.51,172.41,380.36983398]
[1717585595143,6.0662,172.51,172.42,0.34]
[1717585595340,5.73487944,172.53,172.42,0.34]
[1717585595531,18.08931858,172.56,172.42,42.36]
[1717585595730,20.0,172.55,172.42,42.36]
[1717585595932,20.0,172.55,172.42,48.7523]
[1717585596131,20.0,172.55,172.42,41.5023]
[1717585596742,20.0,172.55,172.42,429.0523]
[1717585596946,20.0,172.55,172.42,421.8023]
[1717585598737,20.0,172.55,172.42,415.41]
[1717585599745,0.17,172.54,172.42,380.64]
[1717585602653,0.17,172.54,172.42,0.34]
[1717585603647,25.73487944,172.55,172.42,0.34]
[1717585605837,25.73487944,172.55,172.41,0.06983398]
[1717585606142,51.07487944,172.54,172.41,0.06983398]
[1717585606470,20.0,172.53,172.41,0.06983398]
[1717585606667,6.2671,172.51,172.41,0.06983398]
[1717585606866,20.34,172.5,172.41,0.06983398]
[1717585615374,20.34,172.5,172.37,1.18783398]
[1717585619279,25.00357962,172.5,172.37,1.18783398]
[1717585619450,20.34,172.5,172.37,1.18783398]
[1717585619763,20.0,172.5,172.38,0.34]
[1717585620073,6.2671,172.51,172.38,42.36]
[1717585620879,6.2671,172.51,172.38,35.11]
[1717585621860,0.4,172.54,172.4,34.77]
[1717585622061,0.4,172.54,172.41,42.36]
[1717585622958,0.4,172.54,172.41,0.34]
[1717585623276,0.4,172.54,172.4,0.34]
[1717585623481,0.17,172.53,172.4,0.34]
[1717585624284,0.17,172.53,172.41,0.17]
[1717585624468,0.17,172.53,172.42,1.75776713]
[1717585624868,0.34,172.53,172.42,1.75776713]
[1717585625178,0.34,172.53,172.43,1.75776713]
[1717585625381,0.34,172.53,172.4,1.75776713]
[1717585625562,6.0718,172.52,172.4,1.75776713]
[1717585625764,20.34,172.51,172.4,1.75776713]
[1717585626083,20.34,172.51,172.41,1.75776713]
[1717585626260,20.34,172.51,172.37,1.18783398]
[1717585626261,20.34,172.51,172.38,1.75776713]
[1717585626460,20.34,172.51,172.37,1.18783398]
[1717585630589,20.34,172.51,172.36,380.64]
[1717585630762,20.34,172.51,172.37,0.34]
[1717585631783,20.0,172.51,172.38,6.4807]
[1717585631972,6.0718,172.52,172.39,48.155]
[1717585633289,6.0718,172.52,172.39,40.905]
[1717585637871,6.0718,172.52,172.39,421.205]
[1717585638188,6.0718,172.52,172.39,428.455]
[1717585640289,6.0718,172.52,172.39,421.205]
[1717585641288,6.0718,172.52,172.39,415.41]
[1717585641998,6.0718,172.52,172.39,421.205]
[1717585643199,6.0718,172.52,172.41,34.77]
[1717585643393,6.0718,172.52,172.42,0.34]
[1717585649595,6.0718,172.52,172.42,380.64]
[1717585650172,6.0718,172.52,172.42,415.41]
[1717585651511,6.0718,172.52,172.42,422.66]
[1717585653478,6.0718,172.52,172.42,415.41]
[1717585660510,6.0718,172.52,172.42,415.07]
[1717585661312,6.0718,172.52,172.4,34.77]
[1717585661905,6.0718,172.52,172.41,0.17]
[1717585662211,6.0718,172.52,172.41,0.34]
[1717585662985,6.0718,172.52,172.4,0.34]
[1717585663310,6.0718,172.52,172.38,380.3]
[1717585663485,6.0051,172.5,172.38,380.3]
[1717585663690,20.0,172.49,172.38,380.3]
[1717585667197,20.0,172.49,172.37,0.34]
[1717585667417,15.3709,172.47,172.37,0.17]
[1717585667715,15.3709,172.47,172.36,0.34]
[1717585667903,15.3709,172.47,172.35,0.34]
[1717585673029,15.3709,172.47,172.35,380.64]
[1717585673430,15.3709,172.47,172.35,377.64]
[1717585674923,6.4098,172.46,172.35,377.64]
[1717585678309,6.4098,172.46,172.35,412.41]
[1717585678509,6.4098,172.46,172.36,0.34]
[1717585679015,6.4098,172.46,172.36,377.98]
[1717585679837,6.4098,172.46,172.36,412.75]
[1717585680129,6.4098,172.46,172.36,420.0]
[1717585681520,6.4098,172.46,172.36,412.75]
[1717585682529,6.523,172.5,172.39,47.815]
[1717585682743,6.523,172.5,172.4,0.34]
[1717585683341,6.523,172.5,172.43,7.25]
[1717585683527,7.0084,172.54,172.44,43.50227107]
[1717585683716,7.0084,172.54,172.45,1.14220483]
[1717585684034,7.0084,172.54,172.46,0.34]
[1717585684219,7.0084,172.54,172.46,1.48213866]
[1717585685017,7.0084,172.54,172.46,0.34]
[1717585685217,7.0084,172.54,172.47,0.34]
[1717585685422,7.0084,172.54,172.45,0.34]
[1717585687611,7.0084,172.54,172.46,34.77]
[1717585687810,7.0084,172.54,172.47,0.34]
[1717585688035,0.4,172.54,172.47,48.155]
[1717585689845,0.4,172.54,172.47,0.34]
[1717585690216,0.4,172.54,172.46,34.77]
[1717585694643,1.34033635,172.53,172.46,34.77]
[1717585695655,1.34033635,172.53,172.47,0.34]
[1717585700152,1.34033635,172.53,172.47,40.905]
[1717585700350,1.34033635,172.53,172.47,418.545]
[1717585700668,1.34033635,172.53,172.47,425.795]
[1717585700960,0.4,172.54,172.47,425.795]
[1717585701763,0.4,172.54,172.47,431.9246]
[1717585708477,0.4,172.54,172.47,377.64]
[1717585708781,1.34033635,172.53,172.47,377.64]
[1717585711164,1.34033635,172.53,172.44,412.41]
[1717585711371,1.34033635,172.53,172.45,0.34]
[1717585720487,1.34033635,172.53,172.44,377.64]
[1717585720786,7.74933635,172.53,172.44,377.64]
[1717585722477,7.74933635,172.53,172.41,412.41]
[1717585722683,7.74933635,172.53,172.41,377.64]
[1717585723772,7.74933635,172.53,172.42,0.17]
[1717585724766,7.74933635,172.53,172.41,377.64]
[1717585725788,7.74933635,172.53,172.4,377.98]
[1717585733899,0.17,172.52,172.4,377.98]
[1717585734284,1.34033635,172.51,172.4,377.98]
[1717585737392,1.34033635,172.51,172.4,0.34]
[1717585737701,1.34033635,172.51,172.39,0.34]
[1717585743226,1.34033635,172.51,172.39,377.98]
[1717585744594,1.34033635,172.51,172.39,412.75]
[1717585744796,1.34033635,172.51,172.4,1.15535263]
[1717585745029,1.34033635,172.51,172.41,0.34]
[1717585746295,1.34033635,172.51,172.4,0.34]
[1717585749215,1.34033635,172.51,172.4,377.98]
[1717585759715,6.4447,172.5,172.4,377.98]
[1717585760130,1.34033635,172.49,172.4,377.98]
[1717585761544,1.34033635,172.49,172.42,42.02]
[1717585761741,1.34033635,172.49,172.43,0.34]
[1717585762431,1.34033635,172.49,172.43,42.36]
[1717585762638,1.34033635,172.49,172.43,35.11]
[1717585765435,1.34033635,172.49,172.43,42.36]
[1717585765646,1.34033635,172.49,172.45,42.02]
[1717585765947,7.0279,172.54,172.46,0.34]
[1717585767959,7.0279,172.54,172.46,7.59]
[1717585768248,7.0279,172.54,172.46,42.36]
[1717585768634,7.0279,172.54,172.46,35.11]
[1717585770026,8.36823635,172.54,172.46,0.34]
[1717585770226,0.4,172.54,172.5,42.02]
[1717585770429,0.4,172.54,172.51,42.36]
[1717585770629,0.4,172.54,172.51,420.0]
[1717585770854,0.4,172.54,172.53,34.77]
[1717585771150,0.4,172.54,172.53,35.11]
[1717585771456,0.4,172.54,172.53,48.155]
[1717585773253,0.4,172.54,172.53,0.34]
[1717585779769,0.4,172.54,172.53,7.59]
[1717585780948,0.4,172.54,172.53,42.36]
[1717585781153,0.4,172.54,172.53,48.155]
[1717585781363,0.4,172.54,172.53,425.795]
[1717585781757,0.4,172.54,172.53,452.3466]
[1717585783263,0.4,172.54,172.53,446.5516]
[1717585787357,0.4,172.54,172.53,452.3466]
[1717585790964,0.4,172.54,172.53,486.0379]
[1717585791669,0.4,172.54,172.53,515.0379]
[1717585792776,0.4,172.54,172.53,456.6916]
[1717585792950,0.4,172.54,172.53,432.75]
[1717585794557,0.4,172.54,172.53,440.0]
[1717585795273,0.4,172.54,172.53,439.83]
[1717585796051,0.4,172.54,172.53,432.58]
[1717585796258,0.4,172.54,172.53,439.83]
[1717585796655,0.4,172.54,172.53,507.8164]
[1717585796866,0.4,172.54,172.53,498.52]
[1717585797274,0.4,172.54,172.53,492.185]
[1717585799455,6.1915,172.71,172.53,478.0372]
[1717585799777,6.1915,172.71,172.62,42.02]
[1717585799955,15.8314,172.7,172.61,7.42]
[1717585800158,15.8314,172.7,172.61,0.17]
[1717585800679,6.2089,172.65,172.57,7.25]
[1717585800858,6.2089,172.65,172.58,0.17]
[1717585801381,6.2089,172.65,172.56,412.38]
[1717585801671,6.2089,172.65,172.56,419.63]
[1717585801876,6.2089,172.65,172.6,7.25]
[1717585802060,15.8314,172.7,172.6,7.25]
[1717585802260,6.1825,172.68,172.6,7.25]
[1717585802474,6.1825,172.68,172.61,7.25]
[1717585803075,6.1825,172.68,172.62,0.34]
[1717585803261,6.1825,172.68,172.62,7.59]
[1717585806571,6.1825,172.68,172.62,0.34]
[1717585812464,6.4306,172.63,172.61,377.64]
[1717585812687,16.8517,172.64,172.61,377.64]
[1717585812873,6.6269,172.62,172.61,377.64]
[1717585814273,16.8517,172.64,172.61,377.64]
[1717585814274,6.8401,172.64,172.61,377.64]
[1717585814790,0.4,172.64,172.61,377.64]
[1717585815387,0.4,172.64,172.61,384.89]
[1717585816485,0.4,172.64,172.61,7.25]
[1717585818575,0.4,172.64,172.6,419.97]
[1717585820494,0.4,172.64,172.6,412.72]
[1717585820693,0.4,172.64,172.6,419.97]
[1717585823892,0.4,172.64,172.62,41.99]
[1717585824091,0.4,172.64,172.63,0.34]
[1717585832581,0.4,172.64,172.62,377.64]
[1717585833278,0.4,172.64,172.63,0.17]
[1717585833896,0.4,172.64,172.63,0.34]
[1717585842510,0.4,172.64,172.63,434.2648]
[1717585842721,0.4,172.74,172.63,434.2648]
[1717585842888,0.4,172.74,172.63,441.5148]
[1717585843701,0.4,172.74,172.65,40.529]
[1717585843895,0.4,172.74,172.66,0.34]
[1717585845400,0.4,172.74,172.66,7.59]
[1717585846115,0.4,172.74,172.66,42.33]
[1717585847513,0.4,172.74,172.67,41.99]
[1717585847818,0.4,172.74,172.69,7.25]
[1717585848312,0.4,172.74,172.7,0.34]
[1717585849717,0.4,172.74,172.7,7.59]
[1717585850021,0.4,172.74,172.7,0.34]
[1717585857304,0.4,172.74,172.7,7.59]
[1717585859819,0.4,172.74,172.71,7.25]
[1717585860032,0.4,172.74,172.72,0.17]
[1717585860205,0.4,172.74,172.7,42.33]
[1717585860410,0.4,172.74,172.7,35.08]
[1717585860837,0.4,172.74,172.7,42.33]
[1717585861546,0.4,172.74,172.7,48.5896]
[1717585862408,0.4,172.74,172.71,13.039]
[1717585862716,0.4,172.74,172.73,5.789]
[1717585863028,0.4,172.74,172.73,5.959]
[1717585863350,0.4,172.74,172.73,432.0185]
[1717585869241,0.4,172.74,172.73,448.1409]
[1717585870745,0.4,172.74,172.73,468.1409]
[1717585871243,0.4,172.74,172.73,460.8909]
[1717585873525,0.4,172.74,172.73,478.2809]
[1717585873725,0.4,172.74,172.73,485.5309]
[1717585876855,0.4,172.74,172.73,412.38]
[1717585877858,0.4,172.74,172.73,418.169]
[1717585878863,0.4,172.74,172.73,418.339]
[1717585879361,0.4,172.74,172.73,425.589]
[1717585879771,0.4,172.74,172.73,425.759]
[1717585879942,0.4,172.74,172.73,418.509]
[1717585880267,0.4,172.74,172.73,425.759]
[1717585880441,0.4,172.74,172.73,418.509]
[1717585880641,0.4,172.74,172.73,425.759]
[1717585880866,0.4,172.74,172.73,418.509]
[1717585887369,0.4,172.74,172.73,425.759]
[1717585887750,0.4,172.74,172.73,418.509]
[1717585889071,0.4,172.74,172.73,412.72]
[1717585889860,0.4,172.74,172.73,425.759]
[1717585890784,0.4,172.74,172.73,418.509]
[1717585891085,0.4,172.74,172.73,425.759]
[1717585894394,0.4,172.74,172.73,418.509]
[1717585894598,0.4,172.74,172.73,425.759]
[1717585896091,0.4,172.74,172.73,412.38]
[1717585898593,0.4,172.74,172.73,412.72]
[1717585900878,0.4,172.74,172.73,425.759]
[1717585901078,0.4,172.74,172.73,412.72]
[1717585901773,0.4,172.74,172.73,377.64]
[1717585902295,6.5798,172.74,172.73,377.64]
[1717585906999,0.4,172.74,172.73,377.64]
[1717585907376,0.4,172.74,172.68,412.38]
[1717585907576,0.4,172.74,172.71,41.99]
[1717585907787,0.4,172.74,172.72,0.34]
[1717585913185,0.4,172.74,172.72,7.59]
[1717585915689,0.4,172.74,172.71,384.89]
[1717585916379,0.4,172.74,172.71,377.64]
[1717585919107,0.4,172.74,172.7,0.34]
[1717585921212,0.4,172.74,172.7,7.59]
[1717585921601,0.4,172.74,172.71,7.25]
[1717585923412,0.4,172.74,172.7,7.59]
[1717585924323,0.4,172.74,172.7,0.34]
[1717585927527,0.4,172.74,172.7,7.59]
[1717585929616,0.4,172.74,172.7,42.33]
[1717585929814,0.4,172.74,172.71,7.25]
[1717585930023,0.4,172.74,172.72,0.17]
[1717585936244,0.4,172.74,172.71,0.17]
[1717585945554,0.4,172.74,172.71,42.16]
[1717585945859,0.4,172.74,172.73,7.25]
[1717585946157,0.4,172.74,172.73,7.42]
[1717585946362,0.4,172.74,172.73,7.59]
[1717585947864,0.4,172.74,172.73,0.34]
[1717585948361,0.4,172.74,172.73,377.98]
[1717585949661,0.4,172.74,172.73,412.72]
[1717585950344,0.4,172.74,172.73,418.509]
[1717585952374,0.4,172.74,172.73,425.759]
[1717585952560,0.4,172.74,172.73,418.509]
[1717585952742,0.4,172.74,172.73,425.759]
[1717585954190,0.4,172.74,172.73,48.119]
[1717585956449,0.4,172.74,172.73,40.869]
[1717585956647,0.4,172.74,172.73,48.119]
[1717585960171,0.4,172.74,172.73,428.419]
[1717585963775,0.4,172.74,172.73,434.7526]
[1717585964150,0.4,172.74,172.73,452.1026]
[1717585965866,0.4,172.84,172.75,34.74]
[1717585966074,0.4,172.84,172.77,34.74]
[1717585966265,0.4,172.84,172.78,0.34]